{"text_format":"3","workbook":"xlsx","n_sheets":1,"sheets":["Planificador de presupuesto"],"not_rendered":{"charts":1,"defined_names":1},"read":"whole","date_system":"1900"}

{"sheet":"Planificador de presupuesto","index":0,"n_rows":21,"n_cols":6,"rows_kept":21}
[null,"Planificador de presupuesto de vacaciones"]
[]
[null,"PRESUPUESTO POR CATEGORÍA"]
[null,"Categorías","Presupuesto planeado","Presupuesto detallado","Disponible / (superado)"]
[null,"Transporte",{"v":750,"d":"750 €"},{"$f":"SUMIF(Tabla2[Categoría],Tabla1[[#This Row],[Categorías]],Tabla2[Importe])","v":{"v":720,"d":"720 €"}},{"$f":"IFERROR(Tabla1[[#This Row],[Presupuesto planeado]]-Tabla1[[#This Row],[Presupuesto detallado]],\"\")","v":{"v":30,"d":"30 €"}}]
[null,"Alojamiento",{"v":250,"d":"250 €"},{"$f":"SUMIF(Tabla2[Categoría],Tabla1[[#This Row],[Categorías]],Tabla2[Importe])","v":{"v":300,"d":"300 €"}},{"$f":"IFERROR(Tabla1[[#This Row],[Presupuesto planeado]]-Tabla1[[#This Row],[Presupuesto detallado]],\"\")","v":{"v":-50,"d":"-50 €"}}]
[null,"Comida",{"v":100,"d":"100 €"},{"$f":"SUMIF(Tabla2[Categoría],Tabla1[[#This Row],[Categorías]],Tabla2[Importe])","v":{"v":80,"d":"80 €"}},{"$f":"IFERROR(Tabla1[[#This Row],[Presupuesto planeado]]-Tabla1[[#This Row],[Presupuesto detallado]],\"\")","v":{"v":20,"d":"20 €"}}]
[null,"Actividades",{"v":500,"d":"500 €"},{"$f":"SUMIF(Tabla2[Categoría],Tabla1[[#This Row],[Categorías]],Tabla2[Importe])","v":{"v":500,"d":"500 €"}},{"$f":"IFERROR(Tabla1[[#This Row],[Presupuesto planeado]]-Tabla1[[#This Row],[Presupuesto detallado]],\"\")","v":{"v":0,"d":"0 €"}}]
[null,"Souvenirs",{"v":50,"d":"50 €"},{"$f":"SUMIF(Tabla2[Categoría],Tabla1[[#This Row],[Categorías]],Tabla2[Importe])","v":{"v":0,"d":"0 €"}},{"$f":"IFERROR(Tabla1[[#This Row],[Presupuesto planeado]]-Tabla1[[#This Row],[Presupuesto detallado]],\"\")","v":{"v":50,"d":"50 €"}}]
[null,"Otros",{"v":50,"d":"50 €"},{"$f":"SUMIF(Tabla2[Categoría],Tabla1[[#This Row],[Categorías]],Tabla2[Importe])","v":{"v":0,"d":"0 €"}},{"$f":"IFERROR(Tabla1[[#This Row],[Presupuesto planeado]]-Tabla1[[#This Row],[Presupuesto detallado]],\"\")","v":{"v":50,"d":"50 €"}}]
[null,"Fondo para imprevistos",{"v":200,"d":"200 €"},{"$f":"SUMIF(Tabla2[Categoría],Tabla1[[#This Row],[Categorías]],Tabla2[Importe])","v":{"v":0,"d":"0 €"}},{"$f":"IFERROR(Tabla1[[#This Row],[Presupuesto planeado]]-Tabla1[[#This Row],[Presupuesto detallado]],\"\")","v":{"v":200,"d":"200 €"}}]
[null,"Presupuesto total",{"$f":"SUBTOTAL(109,Tabla1[Presupuesto planeado])","v":{"v":1900,"d":"1,900 €"}},{"$f":"SUBTOTAL(109,Tabla1[Presupuesto detallado])","v":{"v":1600,"d":"1,600 €"}},{"$f":"SUBTOTAL(109,Tabla1[Disponible / (superado)])","v":{"v":300,"d":"300 €"}}]
[]
[null,"DETALLES DEL GASTO"]
[null,"Descripción","Categoría","Cantidad","Coste unitario","Importe"]
[null,"Tarifa aérea","Transporte",2,{"v":300,"d":"300 €"},{"$f":"IFERROR(Tabla2[[#This Row],[Cantidad]]*Tabla2[[#This Row],[Coste unitario]],\"\")","v":{"v":600,"d":"600 €"}}]
[null,"Autobús y taxi (2 días)","Transporte",4,{"v":30,"d":"30 €"},{"$f":"IFERROR(Tabla2[[#This Row],[Cantidad]]*Tabla2[[#This Row],[Coste unitario]],\"\")","v":{"v":120,"d":"120 €"}}]
[null,"Hotel (2 noches)","Alojamiento",2,{"v":150,"d":"150 €"},{"$f":"IFERROR(Tabla2[[#This Row],[Cantidad]]*Tabla2[[#This Row],[Coste unitario]],\"\")","v":{"v":300,"d":"300 €"}}]
[null,"Comida (2 días)","Comida",2,{"v":40,"d":"40 €"},{"$f":"IFERROR(Tabla2[[#This Row],[Cantidad]]*Tabla2[[#This Row],[Coste unitario]],\"\")","v":{"v":80,"d":"80 €"}}]
[null,"Día 1, entradas del concierto","Actividades",2,{"v":250,"d":"250 €"},{"$f":"IFERROR(Tabla2[[#This Row],[Cantidad]]*Tabla2[[#This Row],[Coste unitario]],\"\")","v":{"v":500,"d":"500 €"}}]
[null,"Especifique otros gastos",{"$nulls":3},{"$f":"IFERROR(Tabla2[[#This Row],[Cantidad]]*Tabla2[[#This Row],[Coste unitario]],\"\")","v":{"v":0,"d":"0 €"}}]